Workbook

Sheet Feuil1
F2: u1
B3: f1 (Hz) | C3: U1max (V)
B4: 143 | C4: =AS4/10 -> 4.7 | AS4: 47
AS5: 53
B6: 1000 | C6: 10
L7: Somme u1+u2 | AC7: Sortie filtre
AS8: Filtre Passe Bas
R9: Ue | V9: Us | AS9: Filtre Passe Haut
R10: Somme u1+u2 | V10: Sortie filtre | AS10: Filtre Passe Haut
B22: 0 | C22: 0
F25: u2
B26: f2 (Hz) | C26: U2max (V)
B27: 750 | C27: =AS5/10 -> 5.3
B29: 1000 | C29: 10
R32: Choix du filtre
R35: Fréquence de coupure | W35: 402 | X35: Hz
B45: 0 | C45: 0

Sheet Feuil2 (hidden)
A1: graphe temporel u1 | D1: graphe fréquentiel u1 | G1: graphe temporel u2 | J1: graphe fréquentiel u2 | M1: graphe temporel somme | P1: graphe temporel u1 après filtre | S1: graphe fréquentiel u1 après filtre | V1: graphe temporel u2 après filtre | Y1: graphe fréquentiel u2 après filtre | AB1: graphe temporel somme après filtre
A2: dt= | B2: =IF(f_2=0,0.02,0.00192042*1/f_2+0.000007944) -> 1.050456e-05 | P2: dt= | Q2: =IF(f_1=0,0.02,0.00192042*1/f_1+0.000007944) -> 2.137351049e-05
A3: t | B3: u1 | D3: f1 | E3: U1 | H3: u2 | J3: f2 | K3: U2 | M3: u1+u2 | P3: t | Q3: u1filtre | S3: f1 | T3: U1 filtre | W3: u2filtre | Y3: f2 | Z3: U2filtre | AB3: u1+u2filtre
A4: 0 | B4: =IF(f_1=0,U1max,U1max*SIN(2*PI()*f_1*t)) -> 0 | D4: =f_1 -> 143 | E4: 0 | H4: =U2max*SIN(2*PI()*f_2*t) -> 0 | J4: =f_2 -> 750 | K4: 0 | M4: =u_1+u_2 -> 0 | P4: 0 | Q4: =IF(f_1=0,U1max,U1max*SIN(2*PI()*f_1*t))*testf1 -> 0 | S4: =f_1 -> 143 | T4: 0 | W4: =U2max*SIN(2*PI()*f_2*t)*testf2 -> 0 | Y4: =f_2 -> 750 | Z4: 0 | AB4: =u1filtre+u2filtre -> 0
A5: =A4+dt_1 -> 1.050456e-05 | B5: 0.04435935082 | D5: =f_1 -> 143 | E5: =U1max -> 4.7 | H5: 0.2622512015 | J5: =f_2 -> 750 | K5: =U2max -> 5.3 | M5: 0.3066105523 | P5: =P4+dt_1 -> 1.050456e-05 | Q5: 0 | S5: =f_1 -> 143 | T5: =U1max*testf1 -> 0 | W5: 0.2622512015 | Y5: =f_2 -> 750 | Z5: =U2max*testf2 -> 5.3 | AB5: 0.2622512015
A6: 2.100912e-05 | B6: 0.08871475007 | H6: 0.5238599124 | M6: 0.6125746625 | P6: 2.100912e-05 | Q6: 0 | W6: 0.5238599124 | AB6: 0.5238599124
A7: 3.151368e-05 | B7: 0.1330622465 | H7: 0.7841852161 | M7: 0.9172474626 | P7: 3.151368e-05 | Q7: 0 | W7: 0.7841852161 | AB7: 0.7841852161
A8: 4.201824e-05 | B8: 0.1773978897 | H8: 1.04258934 | M8: 1.21998723 | P8: 4.201824e-05 | Q8: 0 | W8: 1.04258934 | AB8: 1.04258934 | AF8: condition sur fréquence 1
A9: 5.25228e-05 | B9: 0.2217177301 | H9: 1.298439219 | M9: 1.520156949 | P9: 5.25228e-05 | Q9: 0 | W9: 1.298439219 | AB9: 1.298439219
A10: 6.302736e-05 | B10: 0.2660178197 | H10: 1.551108045 | M10: 1.817125864 | P10: 6.302736e-05 | Q10: 0 | W10: 1.551108045 | AB10: 1.551108045 | AF10: =IF(filtre=bas,IF(f_1>fo,0,1),IF(f_1>fo,1,0)) -> 0
A11: 7.353192e-05 | B11: 0.3102942123 | H11: 1.799976802 | M11: 2.110271015 | P11: 7.353192e-05 | Q11: 0 | W11: 1.799976802 | AB11: 1.799976802
A12: 8.403648e-05 | B12: 0.3545429635 | H12: 2.044435787 | M12: 2.398978751 | P12: 8.403648e-05 | Q12: 0 | W12: 2.044435787 | AB12: 2.044435787 | AF12: condition sur fréquence 2
A13: 9.454104e-05 | B13: 0.3987601318 | H13: 2.283886098 | M13: 2.68264623 | P13: 9.454104e-05 | Q13: 0 | W13: 2.283886098 | AB13: 2.283886098
A14: 0.0001050456 | B14: 0.4429417782 | H14: 2.517741104 | M14: 2.960682882 | P14: 0.0001050456 | Q14: 0 | W14: 2.517741104 | AB14: 2.517741104 | AF14: =IF(filtre=bas,IF(f_2>fo,0,1),IF(f_2>fo,1,0)) -> 1
A15: 0.00011555016 | B15: 0.4870839669 | H15: 2.745427882 | M15: 3.232511849 | P15: 0.00011555016 | Q15: 0 | W15: 2.745427882 | AB15: 2.745427882
A16: 0.00012605472 | B16: 0.5311827658 | H16: 2.966388622 | M16: 3.497571388 | P16: 0.00012605472 | Q16: 0 | W16: 2.966388622 | AB16: 2.966388622
A17: 0.00013655928 | B17: 0.5752342465 | H17: 3.18008199 | M17: 3.755316237 | P17: 0.00013655928 | Q17: 0 | W17: 3.18008199 | AB17: 3.18008199
A18: 0.00014706384 | B18: 0.6192344848 | H18: 3.385984459 | M18: 4.005218943 | P18: 0.00014706384 | Q18: 0 | W18: 3.385984459 | AB18: 3.385984459
A19: 0.0001575684 | B19: 0.6631795613 | H19: 3.583591586 | M19: 4.246771147 | P19: 0.0001575684 | Q19: 0 | W19: 3.583591586 | AB19: 3.583591586
A20: 0.00016807296 | B20: 0.7070655611 | H20: 3.772419252 | M20: 4.479484813 | P20: 0.00016807296 | Q20: 0 | W20: 3.772419252 | AB20: 3.772419252
A21: 0.00017857752 | B21: 0.7508885749 | H21: 3.952004849 | M21: 4.702893423 | P21: 0.00017857752 | Q21: 0 | W21: 3.952004849 | AB21: 3.952004849
A22: 0.00018908208 | B22: 0.7946446989 | H22: 4.121908407 | M22: 4.916553106 | P22: 0.00018908208 | Q22: 0 | W22: 4.121908407 | AB22: 4.121908407
A23: 0.00019958664 | B23: 0.8383300353 | H23: 4.28171368 | M23: 5.120043715 | P23: 0.00019958664 | Q23: 0 | W23: 4.28171368 | AB23: 4.28171368
A24: 0.0002100912 | B24: 0.8819406926 | H24: 4.431029159 | M24: 5.312969852 | P24: 0.0002100912 | Q24: 0 | W24: 4.431029159 | AB24: 4.431029159
A25: 0.00022059576 | B25: 0.9254727858 | H25: 4.569489037 | M25: 5.494961823 | P25: 0.00022059576 | Q25: 0 | W25: 4.569489037 | AB25: 4.569489037
A26: 0.00023110032 | B26: 0.9689224372 | H26: 4.696754099 | M26: 5.665676536 | P26: 0.00023110032 | Q26: 0 | W26: 4.696754099 | AB26: 4.696754099
A27: 0.00024160488 | B27: 1.012285776 | H27: 4.812512557 | M27: 5.824798333 | P27: 0.00024160488 | Q27: 0 | W27: 4.812512557 | AB27: 4.812512557
A28: 0.00025210944 | B28: 1.05555894 | H28: 4.916480815 | M28: 5.972039755 | P28: 0.00025210944 | Q28: 0 | W28: 4.916480815 | AB28: 4.916480815
A29: 0.000262614 | B29: 1.098738073 | H29: 5.008404161 | M29: 6.107142234 | P29: 0.000262614 | Q29: 0 | W29: 5.008404161 | AB29: 5.008404161
A30: 0.00027311856 | B30: 1.14181933 | H30: 5.08805739 | M30: 6.22987672 | P30: 0.00027311856 | Q30: 0 | W30: 5.08805739 | AB30: 5.08805739
A31: 0.00028362312 | B31: 1.184798873 | H31: 5.15524536 | M31: 6.340044233 | P31: 0.00028362312 | Q31: 0 | W31: 5.15524536 | AB31: 5.15524536
A32: 0.00029412768 | B32: 1.227672873 | H32: 5.209803466 | M32: 6.437476339 | P32: 0.00029412768 | Q32: 0 | W32: 5.209803466 | AB32: 5.209803466
A33: 0.00030463224 | B33: 1.270437511 | H33: 5.251598047 | M33: 6.522035558 | P33: 0.00030463224 | Q33: 0 | W33: 5.251598047 | AB33: 5.251598047
A34: 0.0003151368 | B34: 1.313088977 | H34: 5.28052671 | M34: 6.593615687 | P34: 0.0003151368 | Q34: 0 | W34: 5.28052671 | AB34: 5.28052671
A35: 0.00032564136 | B35: 1.355623472 | H35: 5.296518582 | M35: 6.652142055 | P35: 0.00032564136 | Q35: 0 | W35: 5.296518582 | AB35: 5.296518582
A36: 0.00033614592 | B36: 1.398037207 | H36: 5.299534485 | M36: 6.697571692 | P36: 0.00033614592 | Q36: 0 | W36: 5.299534485 | AB36: 5.299534485
A37: 0.00034665048 | B37: 1.440326404 | H37: 5.28956703 | M37: 6.729893434 | P37: 0.00034665048 | Q37: 0 | W37: 5.28956703 | AB37: 5.28956703
A38: 0.00035715504 | B38: 1.482487295 | H38: 5.266640636 | M38: 6.749127931 | P38: 0.00035715504 | Q38: 0 | W38: 5.266640636 | AB38: 5.266640636
A39: 0.0003676596 | B39: 1.524516125 | H39: 5.230811471 | M39: 6.755327596 | P39: 0.0003676596 | Q39: 0 | W39: 5.230811471 | AB39: 5.230811471
A40: 0.00037816416 | B40: 1.56640915 | H40: 5.182167312 | M40: 6.748576462 | P40: 0.00037816416 | Q40: 0 | W40: 5.182167312 | AB40: 5.182167312
A41: 0.00038866872 | B41: 1.608162638 | H41: 5.120827334 | M41: 6.728989972 | P41: 0.00038866872 | Q41: 0 | W41: 5.120827334 | AB41: 5.120827334
A42: 0.00039917328 | B42: 1.649772869 | H42: 5.046941814 | M42: 6.696714683 | P42: 0.00039917328 | Q42: 0 | W42: 5.046941814 | AB42: 5.046941814
A43: 0.00040967784 | B43: 1.691236137 | H43: 4.960691764 | M43: 6.651927901 | P43: 0.00040967784 | Q43: 0 | W43: 4.960691764 | AB43: 4.960691764
A44: 0.0004201824 | B44: 1.732548748 | H44: 4.862288488 | M44: 6.594837236 | P44: 0.0004201824 | Q44: 0 | W44: 4.862288488 | AB44: 4.862288488
A45: 0.00043068696 | B45: 1.773707023 | H45: 4.751973066 | M45: 6.525680089 | P45: 0.00043068696 | Q45: 0 | W45: 4.751973066 | AB45: 4.751973066
A46: 0.00044119152 | B46: 1.814707294 | H46: 4.630015759 | M46: 6.444723053 | P46: 0.00044119152 | Q46: 0 | W46: 4.630015759 | AB46: 4.630015759
A47: 0.00045169608 | B47: 1.855545909 | H47: 4.496715352 | M47: 6.352261261 | P47: 0.00045169608 | Q47: 0 | W47: 4.496715352 | AB47: 4.496715352
A48: 0.00046220064 | B48: 1.896219231 | H48: 4.352398418 | M48: 6.248617649 | P48: 0.00046220064 | Q48: 0 | W48: 4.352398418 | AB48: 4.352398418
A49: 0.0004727052 | B49: 1.936723636 | H49: 4.197418519 | M49: 6.134142156 | P49: 0.0004727052 | Q49: 0 | W49: 4.197418519 | AB49: 4.197418519
A50: 0.00048320976 | B50: 1.977055516 | H50: 4.032155342 | M50: 6.009210859 | P50: 0.00048320976 | Q50: 0 | W50: 4.032155342 | AB50: 4.032155342
A51: 0.00049371432 | B51: 2.017211279 | H51: 3.857013767 | M51: 5.874225045 | P51: 0.00049371432 | Q51: 0 | W51: 3.857013767 | AB51: 3.857013767
A52: 0.00050421888 | B52: 2.057187346 | H52: 3.672422872 | M52: 5.729610218 | P52: 0.00050421888 | Q52: 0 | W52: 3.672422872 | AB52: 3.672422872
A53: 0.00051472344 | B53: 2.096980158 | H53: 3.478834889 | M53: 5.575815047 | P53: 0.00051472344 | Q53: 0 | W53: 3.478834889 | AB53: 3.478834889
A54: 0.000525228 | B54: 2.136586168 | H54: 3.27672409 | M54: 5.413310258 | P54: 0.000525228 | Q54: 0 | W54: 3.27672409 | AB54: 3.27672409
A55: 0.00053573256 | B55: 2.17600185 | H55: 3.066585626 | M55: 5.242587476 | P55: 0.00053573256 | Q55: 0 | W55: 3.066585626 | AB55: 3.066585626
A56: 0.00054623712 | B56: 2.215223692 | H56: 2.848934318 | M56: 5.06415801 | P56: 0.00054623712 | Q56: 0 | W56: 2.848934318 | AB56: 2.848934318
A57: 0.00055674168 | B57: 2.2542482 | H57: 2.624303391 | M57: 4.87855159 | P57: 0.00055674168 | Q57: 0 | W57: 2.624303391 | AB57: 2.624303391
A58: 0.00056724624 | B58: 2.293071897 | H58: 2.393243168 | M58: 4.686315065 | P58: 0.00056724624 | Q58: 0 | W58: 2.393243168 | AB58: 2.393243168
A59: 0.0005777508 | B59: 2.331691326 | H59: 2.156319727 | M59: 4.488011052 | P59: 0.0005777508 | Q59: 0 | W59: 2.156319727 | AB59: 2.156319727
A60: 0.00058825536 | B60: 2.370103045 | H60: 1.914113506 | M60: 4.284216551 | P60: 0.00058825536 | Q60: 0 | W60: 1.914113506 | AB60: 1.914113506
A61: 0.00059875992 | B61: 2.408303634 | H61: 1.667217888 | M61: 4.075521522 | P61: 0.00059875992 | Q61: 0 | W61: 1.667217888 | AB61: 1.667217888
A62: 0.00060926448 | B62: 2.446289689 | H62: 1.416237744 | M62: 3.862527433 | P62: 0.00060926448 | Q62: 0 | W62: 1.416237744 | AB62: 1.416237744
A63: 0.00061976904 | B63: 2.484057827 | H63: 1.161787951 | M63: 3.645845778 | P63: 0.00061976904 | Q63: 0 | W63: 1.161787951 | AB63: 1.161787951
A64: 0.0006302736 | B64: 2.521604682 | H64: 0.904491888 | M64: 3.42609657 | P64: 0.0006302736 | Q64: 0 | W64: 0.904491888 | AB64: 0.904491888
A65: 0.00064077816 | B65: 2.558926911 | H65: 0.6449799054 | M65: 3.203906816 | P65: 0.00064077816 | Q65: 0 | W65: 0.6449799054 | AB65: 0.6449799054
A66: 0.00065128272 | B66: 2.596021189 | H66: 0.3838877831 | M66: 2.979908972 | P66: 0.00065128272 | Q66: 0 | W66: 0.3838877831 | AB66: 0.3838877831
A67: 0.00066178728 | B67: 2.63288421 | H67: 0.121855172 | M67: 2.754739382 | P67: 0.00066178728 | Q67: 0 | W67: 0.121855172 | AB67: 0.121855172
A68: 0.00067229184 | B68: =IF(f_1=0,U1max,U1max*SIN(2*PI()*f_1*t)) -> 2.669512693 | H68: =U2max*SIN(2*PI()*f_2*t) -> -0.1404759728 | M68: =u_1+u_2 -> 2.52903672 | P68: 0.00067229184 | Q68: =IF(f_1=0,U1max,U1max*SIN(2*PI()*f_1*t))*testf1 -> 0 | W68: =U2max*SIN(2*PI()*f_2*t)*testf2 -> -0.1404759728 | AB68: =u1filtre+u2filtre -> -0.1404759728
A69: =A68+dt_1 -> 0.0006827964 | B69: 2.705903372 | H69: -0.4024629647 | M69: 2.303440408 | P69: =P68+dt_1 -> 0.0006827964 | Q69: 0 | W69: -0.4024629647 | AB69: -0.4024629647
A70: 0.00069330096 | B70: 2.742053008 | H70: -0.6634639604 | M70: 2.078589048 | P70: 0.00069330096 | Q70: 0 | W70: -0.6634639604 | AB70: -0.6634639604
A71: 0.00070380552 | B71: 2.777958379 | H71: -0.9228395322 | M71: 1.855118847 | P71: 0.00070380552 | Q71: 0 | W71: -0.9228395322 | AB71: -0.9228395322
A72: 0.00071431008 | B72: 2.813616288 | H72: -1.179954234 | M72: 1.633662053 | P72: 0.00071431008 | Q72: 0 | W72: -1.179954234 | AB72: -1.179954234
A73: 0.00072481464 | B73: 2.849023557 | H73: -1.43417816 | M73: 1.414845396 | P73: 0.00072481464 | Q73: 0 | W73: -1.43417816 | AB73: -1.43417816
A74: 0.0007353192 | B74: 2.884177032 | H74: -1.684888486 | M74: 1.199288547 | P74: 0.0007353192 | Q74: 0 | W74: -1.684888486 | AB74: -1.684888486
A75: 0.00074582376 | B75: 2.919073583 | H75: -1.931470994 | M75: 0.9876025895 | P75: 0.00074582376 | Q75: 0 | W75: -1.931470994 | AB75: -1.931470994
A76: 0.00075632832 | B76: 2.9537101 | H76: -2.17332158 | M76: 0.78038852 | P76: 0.00075632832 | Q76: 0 | W76: -2.17332158 | AB76: -2.17332158
A77: 0.00076683288 | B77: 2.988083498 | H77: -2.409847735 | M77: 0.5782357636 | P77: 0.00076683288 | Q77: 0 | W77: -2.409847735 | AB77: -2.409847735
A78: 0.00077733744 | B78: 3.022190716 | H78: -2.64046999 | M78: 0.3817207253 | P78: 0.00077733744 | Q78: 0 | W78: -2.64046999 | AB78: -2.64046999
A79: 0.000787842 | B79: 3.056028714 | H79: -2.864623344 | M79: 0.1914053692 | P79: 0.000787842 | Q79: 0 | W79: -2.864623344 | AB79: -2.864623344
A80: 0.00079834656 | B80: 3.089594478 | H80: -3.081758642 | M80: 0.007835835648 | P80: 0.00079834656 | Q80: 0 | W80: -3.081758642 | AB80: -3.081758642
A81: 0.00080885112 | B81: 3.122885018 | H81: -3.291343923 | M81: -0.1684589045 | P81: 0.00080885112 | Q81: 0 | W81: -3.291343923 | AB81: -3.291343923
A82: 0.00081935568 | B82: 3.15589737 | H82: -3.492865723 | M82: -0.3369683527 | P82: 0.00081935568 | Q82: 0 | W82: -3.492865723 | AB82: -3.492865723
A83: 0.00082986024 | B83: 3.188628591 | H83: -3.685830332 | M83: -0.4972017405 | P83: 0.00082986024 | Q83: 0 | W83: -3.685830332 | AB83: -3.685830332
A84: 0.0008403648 | B84: 3.221075767 | H84: -3.869765005 | M84: -0.6486892384 | P84: 0.0008403648 | Q84: 0 | W84: -3.869765005 | AB84: -3.869765005
A85: 0.00085086936 | B85: 3.253236006 | H85: -4.044219121 | M85: -0.7909831143 | P85: 0.00085086936 | Q85: 0 | W85: -4.044219121 | AB85: -4.044219121
A86: 0.00086137392 | B86: 3.285106445 | H86: -4.208765282 | M86: -0.9236588371 | P86: 0.00086137392 | Q86: 0 | W86: -4.208765282 | AB86: -4.208765282
A87: 0.00087187848 | B87: 3.316684243 | H87: -4.363000367 | M87: -1.046316123 | P87: 0.00087187848 | Q87: 0 | W87: -4.363000367 | AB87: -4.363000367
A88: 0.00088238304 | B88: 3.347966589 | H88: -4.506546513 | M88: -1.158579924 | P88: 0.00088238304 | Q88: 0 | W88: -4.506546513 | AB88: -4.506546513
A89: 0.0008928876 | B89: 3.378950694 | H89: -4.639052047 | M89: -1.260101353 | P89: 0.0008928876 | Q89: 0 | W89: -4.639052047 | AB89: -4.639052047
A90: 0.00090339216 | B90: 3.4096338 | H90: -4.760192343 | M90: -1.350558542 | P90: 0.00090339216 | Q90: 0 | W90: -4.760192343 | AB90: -4.760192343
A91: 0.00091389672 | B91: 3.440013173 | H91: -4.869670617 | M91: -1.429657444 | P91: 0.00091389672 | Q91: 0 | W91: -4.869670617 | AB91: -4.869670617
A92: 0.00092440128 | B92: 3.470086107 | H92: -4.96721866 | M92: -1.497132553 | P92: 0.00092440128 | Q92: 0 | W92: -4.96721866 | AB92: -4.96721866
A93: 0.00093490584 | B93: 3.499849922 | H93: -5.052597487 | M93: -1.552747564 | P93: 0.00093490584 | Q93: 0 | W93: -5.052597487 | AB93: -5.052597487
A94: 0.0009454104 | B94: 3.529301968 | H94: -5.125597928 | M94: -1.596295959 | P94: 0.0009454104 | Q94: 0 | W94: -5.125597928 | AB94: -5.125597928
A95: 0.00095591496 | B95: 3.558439621 | H95: -5.186041139 | M95: -1.627601518 | P95: 0.00095591496 | Q95: 0 | W95: -5.186041139 | AB95: -5.186041139
A96: 0.00096641952 | B96: 3.587260285 | H96: -5.23377904 | M96: -1.646518755 | P96: 0.00096641952 | Q96: 0 | W96: -5.23377904 | AB96: -5.23377904
A97: 0.00097692408 | B97: 3.615761392 | H97: -5.268694677 | M97: -1.652933285 | P97: 0.00097692408 | Q97: 0 | W97: -5.268694677 | AB97: -5.268694677
A98: 0.00098742864 | B98: 3.643940405 | H98: -5.290702512 | M98: -1.646762107 | P98: 0.00098742864 | Q98: 0 | W98: -5.290702512 | AB98: -5.290702512
A99: 0.0009979332 | B99: 3.671794812 | H99: -5.299748625 | M99: -1.627953813 | P99: 0.0009979332 | Q99: 0 | W99: -5.299748625 | AB99: -5.299748625
A100: 0.00100843776 | B100: 3.699322133 | H100: -5.295810856 | M100: -1.596488723 | P100: 0.00100843776 | Q100: 0 | W100: -5.295810856 | AB100: -5.295810856
A101: 0.00101894232 | B101: 3.726519915 | H101: -5.278898852 | M101: -1.552378937 | P101: 0.00101894232 | Q101: 0 | W101: -5.278898852 | AB101: -5.278898852
A102: 0.00102944688 | B102: 3.753385735 | H102: -5.249054045 | M102: -1.495668309 | P102: 0.00102944688 | Q102: 0 | W102: -5.249054045 | AB102: -5.249054045
A103: 0.00103995144 | B103: 3.779917201 | H103: -5.206349552 | M103: -1.426432351 | P103: 0.00103995144 | Q103: 0 | W103: -5.206349552 | AB103: -5.206349552
A104: 0.001050456 | B104: 3.806111949 | H104: -5.150889995 | M104: -1.344778047 | P104: 0.001050456 | Q104: 0 | W104: -5.150889995 | AB104: -5.150889995
A105: 0.00106096056 | B105: 3.831967644 | H105: -5.082811246 | M105: -1.250843601 | P105: 0.00106096056 | Q105: 0 | W105: -5.082811246 | AB105: -5.082811246
A106: 0.00107146512 | B106: 3.857481985 | H106: -5.00228009 | M106: -1.144798104 | P106: 0.00107146512 | Q106: 0 | W106: -5.00228009 | AB106: -5.00228009
A107: 0.00108196968 | B107: 3.882652698 | H107: -4.90949382 | M107: -1.026841122 | P107: 0.00108196968 | Q107: 0 | W107: -4.90949382 | AB107: -4.90949382
A108: 0.00109247424 | B108: 3.907477542 | H108: -4.804679756 | M108: -0.8972022143 | P108: 0.00109247424 | Q108: 0 | W108: -4.804679756 | AB108: -4.804679756
A109: 0.0011029788 | B109: 3.931954303 | H109: -4.688094681 | M109: -0.7561403773 | P109: 0.0011029788 | Q109: 0 | W109: -4.688094681 | AB109: -4.688094681
A110: 0.00111348336 | B110: 3.956080803 | H110: -4.560024217 | M110: -0.6039434138 | P110: 0.00111348336 | Q110: 0 | W110: -4.560024217 | AB110: -4.560024217
A111: 0.00112398792 | B111: 3.979854892 | H111: -4.420782126 | M111: -0.4409272334 | P111: 0.00112398792 | Q111: 0 | W111: -4.420782126 | AB111: -4.420782126
A112: 0.00113449248 | B112: 4.003274453 | H112: -4.270709537 | M112: -0.267435084 | P112: 0.00113449248 | Q112: 0 | W112: -4.270709537 | AB112: -4.270709537
A113: 0.00114499704 | B113: 4.026337398 | H113: -4.110174113 | M113: -0.08383671541 | P113: 0.00114499704 | Q113: 0 | W113: -4.110174113 | AB113: -4.110174113
A114: 0.0011555016 | B114: 4.049041673 | H114: -3.939569152 | M114: 0.1094725213 | P114: 0.0011555016 | Q114: 0 | W114: -3.939569152 | AB114: -3.939569152
A115: 0.00116600616 | B115: 4.071385257 | H115: -3.759312619 | M115: 0.3120726377 | P115: 0.00116600616 | Q115: 0 | W115: -3.759312619 | AB115: -3.759312619
A116: 0.00117651072 | B116: 4.093366158 | H116: -3.569846126 | M116: 0.5235200317 | P116: 0.00117651072 | Q116: 0 | W116: -3.569846126 | AB116: -3.569846126
A117: 0.00118701528 | B117: 4.114982418 | H117: -3.371633848 | M117: 0.7433485705 | P117: 0.00118701528 | Q117: 0 | W117: -3.371633848 | AB117: -3.371633848
A118: 0.00119751984 | B118: 4.136232113 | H118: -3.165161386 | M118: 0.9710707271 | P118: 0.00119751984 | Q118: 0 | W118: -3.165161386 | AB118: -3.165161386
A119: 0.0012080244 | B119: 4.157113348 | H119: -2.950934578 | M119: 1.206178771 | P119: 0.0012080244 | Q119: 0 | W119: -2.950934578 | AB119: -2.950934578
A120: 0.00121852896 | B120: 4.177624264 | H120: -2.729478259 | M120: 1.448146005 | P120: 0.00121852896 | Q120: 0 | W120: -2.729478259 | AB120: -2.729478259
A121: 0.00122903352 | B121: 4.197763034 | H121: -2.501334977 | M121: 1.696428057 | P121: 0.00122903352 | Q121: 0 | W121: -2.501334977 | AB121: -2.501334977
A122: 0.00123953808 | B122: 4.217527864 | H122: -2.267063661 | M122: 1.950464203 | P122: 0.00123953808 | Q122: 0 | W122: -2.267063661 | AB122: -2.267063661
A123: 0.00125004264 | B123: 4.236916993 | H123: -2.027238254 | M123: 2.209678739 | P123: 0.00125004264 | Q123: 0 | W123: -2.027238254 | AB123: -2.027238254
A124: 0.0012605472 | B124: 4.255928693 | H124: -1.782446305 | M124: 2.473482389 | P124: 0.0012605472 | Q124: 0 | W124: -1.782446305 | AB124: -1.782446305
A125: 0.00127105176 | B125: 4.274561272 | H125: -1.53328753 | M125: 2.741273742 | P125: 0.00127105176 | Q125: 0 | W125: -1.53328753 | AB125: -1.53328753
A126: 0.00128155632 | B126: 4.29281307 | H126: -1.280372347 | M126: 3.012440723 | P126: 0.00128155632 | Q126: 0 | W126: -1.280372347 | AB126: -1.280372347
A127: 0.00129206088 | B127: 4.31068246 | H127: -1.024320372 | M127: 3.286362087 | P127: 0.00129206088 | Q127: 0 | W127: -1.024320372 | AB127: -1.024320372
A128: 0.00130256544 | B128: 4.32816785 | H128: -0.7657589099 | M128: 3.56240894 | P128: 0.00130256544 | Q128: 0 | W128: -0.7657589099 | AB128: -0.7657589099
A129: 0.00131307 | B129: 4.345267684 | H129: -0.5053214105 | M129: 3.839946274 | P129: 0.00131307 | Q129: 0 | W129: -0.5053214105 | AB129: -0.5053214105
A130: 0.00132357456 | B130: 4.361980438 | H130: -0.2436459214 | M130: 4.118334517 | P130: 0.00132357456 | Q130: 0 | W130: -0.2436459214 | AB130: -0.2436459214
A131: 0.00133407912 | B131: 4.378304623 | H131: 0.01862647707 | M131: 4.3969311 | P131: 0.00133407912 | Q131: 0 | W131: 0.01862647707 | AB131: 0.01862647707
A132: 0.00134458368 | B132: =IF(f_1=0,U1max,U1max*SIN(2*PI()*f_1*t)) -> 4.394238785 | H132: =U2max*SIN(2*PI()*f_2*t) -> 0.2808532425 | M132: =u_1+u_2 -> 4.675092027 | P132: 0.00134458368 | Q132: =IF(f_1=0,U1max,U1max*SIN(2*PI()*f_1*t))*testf1 -> 0 | W132: =U2max*SIN(2*PI()*f_2*t)*testf2 -> 0.2808532425 | AB132: =u1filtre+u2filtre -> 0.2808532425
A133: =A132+dt_1 -> 0.00135508824 | B133: 4.409781504 | H133: 0.542391944 | M133: 4.952173448 | P133: =P132+dt_1 -> 0.00135508824 | Q133: 0 | W133: 0.542391944 | AB133: 0.542391944
A134: 0.0013655928 | B134: 4.424931396 | H134: 0.8026018366 | M134: 5.227533233 | P134: 0.0013655928 | Q134: 0 | W134: 0.8026018366 | AB134: 0.8026018366
A135: 0.00137609736 | B135: 4.439687112 | H135: 1.060845431 | M135: 5.500532543 | P135: 0.00137609736 | Q135: 0 | W135: 1.060845431 | AB135: 1.060845431
A136: 0.00138660192 | B136: 4.454047337 | H136: 1.316490054 | M136: 5.77053739 | P136: 0.00138660192 | Q136: 0 | W136: 1.316490054 | AB136: 1.316490054
A137: 0.00139710648 | B137: 4.468010791 | H137: 1.568909401 | M137: 6.036920192 | P137: 0.00139710648 | Q137: 0 | W137: 1.568909401 | AB137: 1.568909401
A138: 0.00140761104 | B138: 4.481576231 | H138: 1.817485068 | M138: 6.299061299 | P138: 0.00140761104 | Q138: 0 | W138: 1.817485068 | AB138: 1.817485068
A139: 0.0014181156 | B139: 4.494742448 | H139: 2.061608069 | M139: 6.556350518 | P139: 0.0014181156 | Q139: 0 | W139: 2.061608069 | AB139: 2.061608069
A140: 0.00142862016 | B140: 4.507508271 | H140: 2.300680326 | M140: 6.808188596 | P140: 0.00142862016 | Q140: 0 | W140: 2.300680326 | AB140: 2.300680326
A141: 0.00143912472 | B141: 4.51987256 | H141: 2.534116133 | M141: 7.053988693 | P141: 0.00143912472 | Q141: 0 | W141: 2.534116133 | AB141: 2.534116133
A142: 0.00144962928 | B142: 4.531834215 | H142: 2.761343595 | M142: 7.293177811 | P142: 0.00144962928 | Q142: 0 | W142: 2.761343595 | AB142: 2.761343595
A143: 0.00146013384 | B143: 4.543392171 | H143: 2.981806027 | M143: 7.525198198 | P143: 0.00146013384 | Q143: 0 | W143: 2.981806027 | AB143: 2.981806027
A144: 0.0014706384 | B144: 4.554545398 | H144: 3.194963317 | M144: 7.749508714 | P144: 0.0014706384 | Q144: 0 | W144: 3.194963317 | AB144: 3.194963317
A145: 0.00148114296 | B145: 4.565292901 | H145: 3.400293248 | M145: 7.96558615 | P145: 0.00148114296 | Q145: 0 | W145: 3.400293248 | AB145: 3.400293248
A146: 0.00149164752 | B146: 4.575633725 | H146: 3.597292783 | M146: 8.172926508 | P146: 0.00149164752 | Q146: 0 | W146: 3.597292783 | AB146: 3.597292783
A147: 0.00150215208 | B147: 4.585566947 | H147: 3.785479291 | M147: 8.371046239 | P147: 0.00150215208 | Q147: 0 | W147: 3.785479291 | AB147: 3.785479291
A148: 0.00151265664 | B148: 4.595091684 | H148: 3.964391733 | M148: 8.559483417 | P148: 0.00151265664 | Q148: 0 | W148: 3.964391733 | AB148: 3.964391733
A149: 0.0015231612 | B149: 4.604207085 | H149: 4.13359179 | M149: 8.737798875 | P149: 0.0015231612 | Q149: 0 | W149: 4.13359179 | AB149: 4.13359179
A150: 0.00153366576 | B150: 4.61291234 | H150: 4.292664939 | M150: 8.905577279 | P150: 0.00153366576 | Q150: 0 | W150: 4.292664939 | AB150: 4.292664939
A151: 0.00154417032 | B151: 4.621206673 | H151: 4.441221464 | M151: 9.062428137 | P151: 0.00154417032 | Q151: 0 | W151: 4.441221464 | AB151: 4.441221464
A152: 0.00155467488 | B152: 4.629089345 | H152: 4.578897418 | M152: 9.207986762 | P152: 0.00155467488 | Q152: 0 | W152: 4.578897418 | AB152: 4.578897418
A153: 0.00156517944 | B153: 4.636559653 | H153: 4.705355506 | M153: 9.341915159 | P153: 0.00156517944 | Q153: 0 | W153: 4.705355506 | AB153: 4.705355506
A154: 0.001575684 | B154: 4.643616933 | H154: 4.820285918 | M154: 9.463902851 | P154: 0.001575684 | Q154: 0 | W154: 4.820285918 | AB154: 4.820285918
A155: 0.00158618856 | B155: 4.650260556 | H155: 4.923407085 | M155: 9.573667641 | P155: 0.00158618856 | Q155: 0 | W155: 4.923407085 | AB155: 4.923407085
A156: 0.00159669312 | B156: 4.656489929 | H156: 5.014466372 | M156: 9.670956301 | P156: 0.00159669312 | Q156: 0 | W156: 5.014466372 | AB156: 5.014466372
A157: 0.00160719768 | B157: 4.662304499 | H157: 5.09324069 | M157: 9.755545189 | P157: 0.00160719768 | Q157: 0 | W157: 5.09324069 | AB157: 5.09324069
A158: 0.00161770224 | B158: 4.667703746 | H158: 5.15953705 | M158: 9.827240797 | P158: 0.00161770224 | Q158: 0 | W158: 5.15953705 | AB158: 5.15953705
A159: 0.0016282068 | B159: 4.672687191 | H159: 5.213193033 | M159: 9.885880224 | P159: 0.0016282068 | Q159: 0 | W159: 5.213193033 | AB159: 5.213193033
A160: 0.00163871136 | B160: 4.677254388 | H160: 5.254077186 | M160: 9.931331575 | P160: 0.00163871136 | Q160: 0 | W160: 5.254077186 | AB160: 5.254077186
A161: 0.00164921592 | B161: 4.681404932 | H161: 5.282089348 | M161: 9.96349428 | P161: 0.00164921592 | Q161: 0 | W161: 5.282089348 | AB161: 5.282089348
A162: 0.00165972048 | B162: 4.685138452 | H162: 5.29716089 | M162: 9.982299342 | P162: 0.00165972048 | Q162: 0 | W162: 5.29716089 | AB162: 5.29716089
A163: 0.00167022504 | B163: 4.688454617 | H163: 5.299254889 | M163: 9.987709506 | P163: 0.00167022504 | Q163: 0 | W163: 5.299254889 | AB163: 5.299254889
A164: 0.0016807296 | B164: 4.691353129 | H164: 5.288366215 | M164: 9.979719344 | P164: 0.0016807296 | Q164: 0 | W164: 5.288366215 | AB164: 5.288366215
A165: 0.00169123416 | B165: 4.693833732 | H165: 5.264521545 | M165: 9.958355277 | P165: 0.00169123416 | Q165: 0 | W165: 5.264521545 | AB165: 5.264521545
A166: 0.00170173872 | B166: 4.695896205 | H166: 5.227779294 | M166: 9.923675499 | P166: 0.00170173872 | Q166: 0 | W166: 5.227779294 | AB166: 5.227779294
A167: 0.00171224328 | B167: 4.697540363 | H167: 5.17822948 | M167: 9.875769842 | P167: 0.00171224328 | Q167: 0 | W167: 5.17822948 | AB167: 5.17822948
A168: 0.00172274784 | B168: 4.69876606 | H168: 5.115993492 | M168: 9.814759552 | P168: 0.00172274784 | Q168: 0 | W168: 5.115993492 | AB168: 5.115993492
A169: 0.0017332524 | B169: 4.699573187 | H169: 5.041223805 | M169: 9.740796992 | P169: 0.0017332524 | Q169: 0 | W169: 5.041223805 | AB169: 5.041223805
A170: 0.00174375696 | B170: 4.699961672 | H170: 4.954103597 | M170: 9.654065269 | P170: 0.00174375696 | Q170: 0 | W170: 4.954103597 | AB170: 4.954103597
A171: 0.00175426152 | B171: 4.69993148 | H171: 4.854846304 | M171: 9.554777784 | P171: 0.00175426152 | Q171: 0 | W171: 4.854846304 | AB171: 4.854846304
A172: 0.00176476608 | B172: 4.699482615 | H172: 4.743695096 | M172: 9.443177711 | P172: 0.00176476608 | Q172: 0 | W172: 4.743695096 | AB172: 4.743695096
A173: 0.00177527064 | B173: 4.698615116 | H173: 4.620922285 | M173: 9.319537401 | P173: 0.00177527064 | Q173: 0 | W173: 4.620922285 | AB173: 4.620922285
A174: 0.0017857752 | B174: 4.69732906 | H174: 4.486828651 | M174: 9.184157711 | P174: 0.0017857752 | Q174: 0 | W174: 4.486828651 | AB174: 4.486828651
A175: 0.00179627976 | B175: 4.695624562 | H175: 4.341742711 | M175: 9.037367274 | P175: 0.00179627976 | Q175: 0 | W175: 4.341742711 | AB175: 4.341742711
A176: 0.00180678432 | B176: 4.693501774 | H176: 4.186019913 | M176: 8.879521688 | P176: 0.00180678432 | Q176: 0 | W176: 4.186019913 | AB176: 4.186019913
A177: 0.00181728888 | B177: 4.690960885 | H177: 4.020041762 | M177: 8.711002647 | P177: 0.00181728888 | Q177: 0 | W177: 4.020041762 | AB177: 4.020041762
A178: 0.00182779344 | B178: 4.688002121 | H178: 3.844214889 | M178: 8.532217011 | P178: 0.00182779344 | Q178: 0 | W178: 3.844214889 | AB178: 3.844214889
A179: 0.001838298 | B179: 4.684625746 | H179: 3.658970054 | M179: 8.3435958 | P179: 0.001838298 | Q179: 0 | W179: 3.658970054 | AB179: 3.658970054
A180: 0.00184880256 | B180: 4.680832061 | H180: 3.464761088 | M180: 8.145593149 | P180: 0.00184880256 | Q180: 0 | W180: 3.464761088 | AB180: 3.464761088
A181: 0.00185930712 | B181: 4.676621403 | H181: 3.262063785 | M181: 7.938685188 | P181: 0.00185930712 | Q181: 0 | W181: 3.262063785 | AB181: 3.262063785
A182: 0.00186981168 | B182: 4.671994148 | H182: 3.051374734 | M182: 7.723368882 | P182: 0.00186981168 | Q182: 0 | W182: 3.051374734 | AB182: 3.051374734
A183: 0.00188031624 | B183: 4.666950707 | H183: 2.833210104 | M183: 7.500160812 | P183: 0.00188031624 | Q183: 0 | W183: 2.833210104 | AB183: 2.833210104
A184: 0.0018908208 | B184: 4.661491531 | H184: 2.608104378 | M184: 7.269595909 | P184: 0.0018908208 | Q184: 0 | W184: 2.608104378 | AB184: 2.608104378
A185: 0.00190132536 | B185: 4.655617105 | H185: 2.376609043 | M185: 7.032226148 | P185: 0.00190132536 | Q185: 0 | W185: 2.376609043 | AB185: 2.376609043
A186: 0.00191182992 | B186: 4.649327953 | H186: 2.13929124 | M186: 6.788619193 | P186: 0.00191182992 | Q186: 0 | W186: 2.13929124 | AB186: 2.13929124
A187: 0.00192233448 | B187: 4.642624634 | H187: 1.896732376 | M187: 6.53935701 | P187: 0.00192233448 | Q187: 0 | W187: 1.896732376 | AB187: 1.896732376
A188: 0.00193283904 | B188: 4.635507747 | H188: 1.649526697 | M188: 6.285034445 | P188: 0.00193283904 | Q188: 0 | W188: 1.649526697 | AB188: 1.649526697
A189: 0.0019433436 | B189: 4.627977925 | H189: 1.398279834 | M189: 6.026257759 | P189: 0.0019433436 | Q189: 0 | W189: 1.398279834 | AB189: 1.398279834
A190: 0.00195384816 | B190: 4.620035839 | H190: 1.143607318 | M190: 5.763643157 | P190: 0.00195384816 | Q190: 0 | W190: 1.143607318 | AB190: 1.143607318
A191: 0.00196435272 | B191: 4.611682196 | H191: 0.8861330723 | M191: 5.497815268 | P191: 0.00196435272 | Q191: 0 | W191: 0.8861330723 | AB191: 0.8861330723
A192: 0.00197485728 | B192: 4.60291774 | H192: 0.6264878841 | M192: 5.229405624 | P192: 0.00197485728 | Q192: 0 | W192: 0.6264878841 | AB192: 0.6264878841
A193: 0.00198536184 | B193: 4.593743253 | H193: 0.36530786 | M193: 4.959051113 | P193: 0.00198536184 | Q193: 0 | W193: 0.36530786 | AB193: 0.36530786
A194: 0.0019958664 | B194: 4.584159551 | H194: 0.1032328661 | M194: 4.687392417 | P194: 0.0019958664 | Q194: 0 | W194: 0.1032328661 | AB194: 0.1032328661
A195: 0.00200637096 | B195: 4.574167488 | H195: -0.1590950385 | M195: 4.41507245 | P195: 0.00200637096 | Q195: 0 | W195: -0.1590950385 | AB195: -0.1590950385
A196: 0.00201687552 | B196: =IF(f_1=0,U1max,U1max*SIN(2*PI()*f_1*t)) -> 4.563767955 | H196: =U2max*SIN(2*PI()*f_2*t) -> -0.4210331753 | M196: =u_1+u_2 -> 4.142734779 | P196: 0.00201687552 | Q196: =IF(f_1=0,U1max,U1max*SIN(2*PI()*f_1*t))*testf1 -> 0 | W196: =U2max*SIN(2*PI()*f_2*t)*testf2 -> -0.4210331753 | AB196: =u1filtre+u2filtre -> -0.4210331753
A197: =A196+dt_1 -> 0.00202738008 | B197: 4.552961877 | H197: -0.6819398207 | M197: 3.871022056 | P197: =P196+dt_1 -> 0.00202738008 | Q197: 0 | W197: -0.6819398207 | AB197: -0.6819398207
A198: 0.00203788464 | B198: 4.541750218 | H198: -0.9411757781 | M198: 3.60057444 | P198: 0.00203788464 | Q198: 0 | W198: -0.9411757781 | AB198: -0.9411757781
A199: 0.0020483892 | B199: 4.530133975 | H199: -1.198105944 | M199: 3.332028031 | P199: 0.0020483892 | Q199: 0 | W199: -1.198105944 | AB199: -1.198105944
A200: 0.00205889376 | B200: 4.518114185 | H200: -1.452100863 | M200: 3.066013321 | P200: 0.00205889376 | Q200: 0 | W200: -1.452100863 | AB200: -1.452100863
... 804 more rows

Sheet Feuil3 (hidden)
C2: passe bas | D2: passe haut | E2: filtre choisi | H2: condition sur fréquence 1
B3: f | C3: Hbas | D3: Hhaut | E3: H
B4: 0 | C4: 1 | D4: 0 | E4: =IF([0]!filtre=bas,Feuil3!C4,Feuil3!D4) -> 0 | H4: =IF(filtre=bas,IF(f_1>fo,0,1),IF(f_1>fo,1,0)) -> 0
B5: =fo -> 402 | C5: 1 | D5: 0 | E5: =IF([0]!filtre=bas,Feuil3!C5,Feuil3!D5) -> 0
B6: =fo -> 402 | C6: 0 | D6: 1 | E6: =IF([0]!filtre=bas,Feuil3!C6,Feuil3!D6) -> 1
B7: 1000 | C7: 0 | D7: 1 | E7: =IF([0]!filtre=bas,Feuil3!C7,Feuil3!D7) -> 1
H8: condition sur fréquence 2
H10: =IF(filtre=bas,IF(f_2>fo,0,1),IF(f_2>fo,1,0)) -> 1
